bitfinex-derivatives/quotes_SOLF0:USTF0_20251025
["timestamp","ask_amount","ask_price","bid_price","bid_amount"]
[1761427267704,2.76,194.76,194.72,2.63]
[1761427267898,2.76,194.75,194.72,2.63]
[1761427272506,2.76,194.75,194.72,7.2513]
[1761427274910,2.76,194.75,194.72,7.2313]
[1761427277411,2.76,194.75,194.73,2.61]
[1761427280512,2.77,194.73,194.72,4.6213]
[1761427281605,2.77,194.78,194.72,4.6213]
[1761427281805,2.77,194.76,194.72,7.2313]
[1761427282112,2.77,194.74,194.72,7.2313]
[1761427283214,4.57469365,194.78,194.72,7.2313]
[1761427283422,2.77,194.76,194.73,2.61]
[1761427283620,4.11562104,194.75,194.73,2.61]
[1761427283814,2.77,194.76,194.73,2.61]
[1761427284017,4.11553823,194.75,194.73,2.61]
[1761427284319,4.11553823,194.74,194.73,2.61]
[1761427289816,2.77,194.77,194.74,7.231]
[1761427290018,4.21412006,194.76,194.74,7.231]
[1761427290220,4.21412006,194.75,194.74,7.231]
[1761427295729,6.98412006,194.75,194.74,7.231]
[1761427295933,6.98412006,194.75,194.74,4.621]
[1761427297238,2.77,194.75,194.74,4.621]
[1761427299141,6.9037497,194.75,194.74,4.621]
[1761427302837,6.89266707,194.75,194.74,4.621]
[1761427303239,2.72,194.74,194.72,7.2414]
[1761427303842,2.72,194.74,194.72,4.6214]
[1761427304338,4.23867734,194.73,194.72,4.6214]
[1761427304540,6.95867734,194.73,194.72,4.6214]
[1761427308148,4.23867734,194.73,194.72,7.2414]
[1761427308736,2.72,194.77,194.74,7.2409]
[1761427308938,6.85984161,194.76,194.74,7.2409]
[1761427309143,4.13984161,194.75,194.74,7.2409]
[1761427309340,2.72,194.76,194.74,7.2409]
[1761427311538,2.72,194.76,194.74,4.6209]
[1761427312340,2.72,194.76,194.73,2.62]
[1761427314435,4.14174643,194.75,194.73,2.62]
[1761427314637,2.72,194.75,194.73,2.62]
[1761427316039,2.72,194.73,194.7,2.62]
[1761427317043,2.72,194.73,194.7,7.2418]
[1761427317233,2.72,194.73,194.71,2.62]
[1761427317639,2.72,194.73,194.7,4.6218]
[1761427317845,2.72,194.73,194.7,7.2418]
[1761427319640,2.72,194.71,194.7,4.6218]
[1761427319841,2.72,194.71,194.67,2.62]
[1761427319842,2.72,194.7,194.67,2.62]
[1761427320044,6.94494533,194.69,194.67,2.62]
[1761427320245,6.94494533,194.68,194.65,2.62]
[1761427320563,2.72,194.68,194.65,2.62]
[1761427320748,2.72,194.68,194.66,4.6228]
[1761427321941,2.72,194.66,194.62,2.59]
[1761427322147,2.72,194.64,194.62,2.59]
[1761427322944,2.72,194.64,194.62,7.2138]
[1761427326859,2.72,194.64,194.6,2.59]
[1761427332968,2.72,194.64,194.59,4.6244]
[1761427333160,2.72,194.64,194.57,7.255]
[1761427335161,2.68,194.63,194.57,7.255]
[1761427336663,2.68,194.63,194.55,6.31450785]
[1761427336866,2.68,194.63,194.55,8.94450785]
[1761427341765,2.68,194.63,194.56,2.63]
[1761427343468,2.68,194.63,194.56,7.2551]
[1761427344970,2.68,194.63,194.57,2.63]
[1761427348371,2.68,194.62,194.57,2.63]
[1761427352777,2.68,194.61,194.57,2.63]
[1761427357479,2.68,194.59,194.56,2.63]
[1761427358272,2.76,194.64,194.56,2.63]
[1761427358473,2.76,194.64,194.49,62.0]
[1761427358474,2.76,194.62,194.59,2.64]
[1761427358676,4.20487115,194.61,194.59,2.64]
[1761427358876,2.76,194.61,194.59,2.64]
[1761427364987,2.76,194.59,194.57,2.64]
[1761427368581,2.76,194.59,194.56,4.6253]
[1761427369090,2.76,194.59,194.56,7.2653]
[1761427369992,2.76,194.59,194.56,4.6253]
[1761427370295,2.76,194.57,194.56,4.6253]
[1761427370587,2.76,194.57,194.56,7.2653]
[1761427370890,4.80465601,194.63,194.56,7.2653]
[1761427371191,2.76,194.61,194.56,7.2653]
[1761427371382,2.76,194.59,194.56,7.2653]
[1761427371582,6.90579408,194.58,194.56,7.2653]
[1761427371782,2.76,194.58,194.56,4.6253]
[1761427372282,2.76,194.58,194.54,2.64]
[1761427372482,6.89384348,194.57,194.54,2.64]
[1761427372681,2.76,194.57,194.54,2.64]
[1761427373093,4.12042331,194.56,194.54,2.64]
[1761427373290,2.76,194.55,194.52,2.64]
[1761427377293,2.76,194.55,194.52,1.68900785]
[1761427377494,2.76,194.55,194.53,2.64]
[1761427378992,2.76,194.55,194.52,1.68900785]
[1761427379200,6.88070192,194.54,194.52,4.32900785]
[1761427379395,2.76,194.54,194.52,4.32900785]
[1761427381090,2.67,194.58,194.52,8.94500785]
[1761427381296,6.77703122,194.57,194.53,2.63]
[1761427381493,4.10703122,194.56,194.53,2.63]
[1761427381691,2.67,194.57,194.53,2.63]
[1761427382397,2.67,194.57,194.55,4.31900785]
[1761427383490,4.12640764,194.56,194.55,4.31900785]
[1761427383792,2.67,194.57,194.55,4.31900785]
[1761427384694,2.67,194.57,194.55,2.63]
[1761427388296,4.80465601,194.61,194.55,2.63]
[1761427388502,4.12581534,194.6,194.56,2.63]
[1761427388799,4.12581534,194.59,194.56,2.63]
[1761427389000,4.12581534,194.58,194.56,2.63]
[1761427389205,2.79,194.61,194.56,2.63]
[1761427389406,2.79,194.59,194.56,2.63]
[1761427390006,2.79,194.59,194.57,2.63]
[1761427399413,6.77585051,194.62,194.58,2.63]
[1761427399607,2.79,194.62,194.58,2.63]
[1761427400009,2.79,194.62,194.59,2.63]
[1761427401005,2.79,194.66,194.59,2.63]
[1761427401214,4.80465601,194.67,194.59,2.63]
[1761427401215,2.79,194.64,194.59,2.63]
[1761427401912,3.98408987,194.63,194.59,2.63]
[1761427402117,2.79,194.63,194.59,2.63]
[1761427403415,2.79,194.63,194.61,2.63]
[1761427406616,2.79,194.61,194.55,2.63]
[1761427406816,2.79,194.59,194.55,2.63]
[1761427419335,4.04585529,194.58,194.55,2.63]
[1761427419534,2.72,194.62,194.55,2.63]
[1761427419834,2.72,194.6,194.55,2.63]
[1761427420029,2.72,194.58,194.55,2.63]
[1761427430635,4.04787493,194.57,194.53,7.2659]
[1761427430842,4.04787493,194.56,194.53,7.2659]
[1761427431041,2.72,194.55,194.53,7.2659]
[1761427431243,2.72,194.55,194.54,2.64]
[1761427432946,6.76506714,194.55,194.52,2.64]
[1761427433242,2.72,194.55,194.52,2.64]
[1761427433748,2.72,194.55,194.49,69.2669]
[1761427434046,2.72,194.53,194.5,2.64]
[1761427434337,4.80465601,194.57,194.5,2.64]
[1761427434338,2.72,194.52,194.5,2.64]
[1761427438135,2.72,194.57,194.5,2.64]
[1761427438336,2.72,194.55,194.5,2.64]
[1761427438542,2.72,194.53,194.5,2.64]
[1761427446551,2.67,194.5,194.39,2.63]
[1761427446752,2.67,194.46,194.39,2.63]
[1761427455464,2.67,194.46,194.4,2.64]
[1761427461064,2.67,194.46,194.37,5.52481569]
[1761427461065,2.67,194.46,194.38,2.64]
[1761427464880,2.77,194.43,194.38,2.64]
[1761427472991,2.77,194.43,194.4,2.64]
[1761427478300,2.65,194.46,194.41,2.64]
[1761427479995,2.65,194.46,194.41,7.2687]
[1761427480188,2.65,194.46,194.42,2.64]
[1761427484994,2.65,194.45,194.42,2.64]
[1761427485594,2.65,194.45,194.41,4.6287]
[1761427485595,2.65,194.42,194.38,2.64]
[1761427488694,2.65,194.42,194.37,4.6297]
[1761427488898,2.65,194.42,194.37,7.2697]
[1761427491498,4.040275,194.41,194.37,7.2697]
[1761427491702,2.65,194.4,194.37,7.2697]
[1761427492605,2.65,194.4,194.38,2.64]
[1761427495710,2.65,194.4,194.37,7.2697]
[1761427503319,2.84,194.38,194.32,64.64]
[1761427503623,2.84,194.36,194.26,2.64]
[1761427503810,2.84,194.34,194.26,2.64]
[1761427504013,2.84,194.32,194.26,2.64]
[1761427509714,2.84,194.32,194.27,2.61]
[1761427513831,2.84,194.32,194.27,4.632]
[1761427514131,2.84,194.32,194.28,2.61]
[1761427514326,2.84,194.38,194.28,2.61]
[1761427514529,2.84,194.36,194.28,2.61]
[1761427515626,2.84,194.36,194.31,2.61]
[1761427516824,6.91223677,194.35,194.31,2.61]
[1761427517026,2.84,194.35,194.31,2.61]
[1761427519644,2.6488121,194.41,194.31,2.61]
[1761427519645,4.27640549,194.34,194.31,2.61]
[1761427519846,2.84,194.36,194.31,2.61]
[1761427520058,2.84,194.34,194.31,2.61]
[1761427520942,4.41908186,194.33,194.31,2.61]
[1761427521136,2.84,194.34,194.31,2.61]
[1761427521338,4.41908244,194.33,194.31,2.61]
[1761427521540,2.84,194.34,194.31,2.61]
[1761427521738,4.41921179,194.33,194.31,2.61]
[1761427521941,2.84,194.34,194.31,2.61]
[1761427522154,4.41926809,194.33,194.31,2.61]
[1761427522339,2.84,194.34,194.31,2.61]
[1761427522547,4.41911403,194.33,194.31,2.61]
[1761427522847,2.84,194.34,194.31,2.61]
[1761427523147,4.41922506,194.33,194.31,2.61]
[1761427523345,2.84,194.34,194.31,2.61]
[1761427523546,4.41943706,194.33,194.31,2.61]
[1761427523745,2.84,194.34,194.31,2.61]
[1761427523946,4.41949228,194.33,194.31,2.61]
[1761427524145,2.84,194.34,194.31,2.61]
[1761427524346,4.41965245,194.33,194.31,2.61]
[1761427524548,2.84,194.34,194.31,2.61]
[1761427524747,4.4203082,194.33,194.31,2.61]
[1761427524949,2.84,194.34,194.31,2.61]
[1761427525246,7.26025297,194.33,194.31,2.61]
[1761427525448,4.42025297,194.32,194.31,2.61]
[1761427526644,2.84,194.33,194.31,2.61]
[1761427529044,4.39785238,194.32,194.31,2.61]
[1761427529252,2.84,194.33,194.31,2.61]
[1761427529752,4.39929643,194.32,194.31,2.61]
[1761427530950,2.84,194.33,194.31,2.61]
[1761427536454,2.84,194.36,194.26,2.61]
[1761427536755,2.84,194.39,194.26,2.61]
[1761427536949,2.84,194.42,194.34,2.61]
[1761427537159,2.84,194.4,194.34,2.61]
[1761427537355,2.84,194.38,194.34,2.61]
[1761427537557,2.84,194.45,194.36,7.2399]
[1761427537755,2.84,194.43,194.36,2.61]
[1761427538055,2.6488121,194.51,194.36,2.61]
[1761427538246,2.81,194.49,194.4,7.269]
[1761427538448,2.81,194.47,194.4,7.269]
[1761427538756,2.81,194.45,194.4,7.269]
[1761427539054,2.81,194.45,194.41,2.64]
[1761427543456,2.81,194.47,194.43,2.64]
[1761427543653,2.81,194.47,194.33,13.7688121]
[1761427543654,2.81,194.47,194.34,2.64]
[1761427544058,2.81,194.47,194.4,7.2689]
[1761427544962,2.81,194.45,194.38,4.6295]
[1761427545168,2.81,194.44,194.38,7.2695]
[1761427545749,2.81,194.44,194.38,2.64]
[1761427545962,2.81,194.44,194.39,7.2692]
[1761427549656,2.81,194.44,194.4,4.6289]
[1761427549862,2.81,194.44,194.41,2.64]
[1761427550261,2.81,194.47,194.41,4.6287]
[1761427550455,2.81,194.47,194.42,2.64]
[1761427566864,1.69287606,194.46,194.42,2.64]
[1761427567170,2.64,194.45,194.42,2.64]
[1761427569265,2.64,194.45,194.42,7.2685]
[1761427569769,2.64,194.45,194.43,2.64]
[1761427570870,2.64,194.45,194.42,4.6285]
[1761427571070,2.64,194.45,194.42,7.2685]
[1761427571771,2.64,194.45,194.43,2.64]
[1761427583585,3.88738568,194.44,194.43,2.64]
[1761427583787,2.72,194.43,194.41,2.64]
[1761427590689,2.72,194.45,194.42,2.64]
[1761427590887,3.88764509,194.44,194.42,2.64]
[1761427591188,2.72,194.45,194.42,2.64]
[1761427591388,3.88794519,194.44,194.42,2.64]
[1761427591583,2.72,194.45,194.42,2.64]
[1761427591784,3.88800088,194.44,194.42,2.64]
[1761427591986,2.72,194.45,194.42,2.64]
[1761427592290,3.88800207,194.44,194.42,2.64]
[1761427592490,2.72,194.45,194.42,2.64]
[1761427592788,3.88841835,194.44,194.42,2.64]
[1761427592990,2.72,194.45,194.42,2.64]
[1761427593179,3.88841782,194.44,194.42,2.64]
[1761427593378,2.72,194.45,194.42,2.64]
[1761427593586,3.88898506,194.44,194.42,2.64]
[1761427593786,2.72,194.45,194.42,2.64]
[1761427593989,3.88893048,194.44,194.42,2.64]
[1761427594289,4.41287606,194.46,194.43,2.64]
[1761427594492,3.88947029,194.45,194.43,2.64]
[1761427594690,4.41287606,194.46,194.43,2.64]
[1761427594890,3.88946975,194.45,194.43,2.64]
[1761427595088,4.41287606,194.46,194.43,2.64]
[1761427595289,6.60927128,194.45,194.43,2.64]
[1761427595590,2.72,194.45,194.43,2.64]
[1761427599385,1.69287606,194.46,194.36,2.64]
[1761427599585,3.88869664,194.45,194.36,2.64]
[1761427599786,2.69,194.48,194.36,2.64]
[1761427599987,2.69,194.46,194.44,2.64]
[1761427600190,3.88869664,194.45,194.44,2.64]
[1761427600992,4.38287606,194.49,194.45,2.64]
[1761427601296,2.69,194.49,194.45,2.64]
[1761427601508,4.38287606,194.52,194.48,2.64]
[1761427601795,6.5765277,194.51,194.48,2.64]
[1761427601995,3.8865277,194.5,194.48,2.64]
[1761427602188,3.8865277,194.49,194.48,2.64]
[1761427602389,3.8865277,194.49,194.41,27.56]
[1761427602592,2.69,194.51,194.41,27.56]
[1761427602793,3.88502733,194.5,194.41,27.56]
[1761427602992,2.69,194.51,194.41,27.56]
[1761427603193,3.88508131,194.5,194.47,4.6273]
[1761427603393,2.69,194.51,194.47,4.6273]
[1761427603695,3.88375287,194.5,194.47,4.6273]
[1761427603992,2.69,194.51,194.47,4.6273]
[1761427604188,3.88375287,194.5,194.48,4.627]
[1761427604388,2.69,194.51,194.48,4.627]
[1761427604589,3.88266408,194.5,194.48,4.627]
[1761427604888,2.69,194.51,194.48,4.627]
[1761427605196,3.8826623,194.5,194.48,4.627]
[1761427605499,2.69,194.51,194.48,4.627]
[1761427605796,3.88184379,194.5,194.48,4.627]
[1761427605996,2.69,194.51,194.48,4.627]
[1761427606293,3.88184379,194.5,194.48,4.627]
[1761427606493,2.69,194.51,194.48,4.627]
[1761427606692,3.88104815,194.5,194.48,4.627]
[1761427606892,2.69,194.51,194.48,4.627]
[1761427607087,3.88104815,194.5,194.48,4.627]
[1761427607292,2.69,194.51,194.48,4.627]
[1761427610397,2.69,194.51,194.46,4.6276]
[1761427641132,2.69,194.51,194.47,4.6273]
[1761427646524,2.6,194.49,194.33,2.6431544]
[1761427646731,2.6,194.47,194.32,0.89472805]
[1761427646931,2.6,194.45,194.32,0.89472805]
[1761427647132,2.6,194.43,194.32,0.89472805]
[1761427648930,2.6,194.43,194.36,4.6299]
[1761427659147,2.6,194.43,194.34,4.6305]
[1761427659637,2.6,194.43,194.32,4.6309]
[1761427659841,2.7,194.39,194.22,9.2667]
[1761427660042,2.7,194.39,194.23,62.04]
[1761427660242,2.7,194.39,194.26,0.89556848]
[1761427660642,6.54878585,194.39,194.26,0.89556848]
[1761427660836,2.7,194.38,194.26,0.89556848]
[1761427662042,2.7,194.38,194.26,5.52796848]
[1761427665446,2.7,194.35,194.26,4.6324]
[1761427681850,2.7,194.35,194.23,62.9356261]
[1761427682757,2.7,194.35,194.28,4.6318]
[1761427690662,2.63,194.38,194.27,1.69470314]
[1761427691968,2.63,194.38,194.31,4.6312]
[1761427692163,2.63,194.38,194.27,1.69470314]
[1761427692566,2.63,194.38,194.23,62.9356261]
[1761427692567,3.84386057,194.39,194.3,1.69470314]
[1761427692761,2.63,194.41,194.3,1.69470314]
[1761427693168,2.63,194.41,194.35,4.6301]
[1761427694568,2.63,194.41,194.36,4.6299]
[1761427695773,2.63,194.44,194.37,4.6296]
[1761427695973,6.47613256,194.44,194.34,1.69470314]
[1761427696173,2.63,194.48,194.37,1.69470314]
[1761427696373,6.47599125,194.47,194.37,1.69470314]
[1761427696572,2.63,194.47,194.37,1.69470314]
[1761427698475,2.63,194.47,194.34,22.23470314]
[1761427698677,2.63,194.45,194.31,1.69470314]
[1761427698865,2.63,194.45,194.31,28.93470314]
[1761427699070,3.84541792,194.45,194.31,28.93470314]
[1761427699270,2.63,194.44,194.31,28.93470314]
[1761427700074,2.63,194.44,194.36,4.6299]
[1761427702679,2.63,194.44,194.37,4.6296]
[1761427722498,2.63,194.44,194.38,4.6294]
[1761427731200,2.64,194.43,194.38,4.6294]
[1761427731400,2.64,194.43,194.39,4.6292]
[1761427736198,6.50079174,194.42,194.4,1.69470314]
[1761427736404,2.64,194.42,194.4,1.69470314]
[1761427739003,2.64,194.41,194.4,1.69470314]
[1761427739307,6.50375034,194.41,194.4,1.69470314]
[1761427744911,6.50375034,194.41,194.39,4.6292]
[1761427745110,2.64,194.41,194.39,6.32390314]
[1761427745304,6.7067345,194.4,194.39,1.69470314]
[1761427745508,2.84,194.39,194.36,4.6299]
[1761427746309,2.84,194.43,194.38,1.69470314]
[1761427746610,6.70583414,194.42,194.38,1.69470314]
[1761427746808,3.86583414,194.41,194.38,1.69470314]
[1761427747008,2.84,194.42,194.38,1.69470314]
[1761427747223,3.86579224,194.41,194.38,1.69470314]
[1761427747408,2.84,194.43,194.38,1.69470314]
[1761427747609,3.86582165,194.42,194.38,1.69470314]
[1761427747910,3.86582165,194.41,194.38,1.69470314]
[1761427748110,2.84,194.43,194.38,1.69470314]
[1761427748311,3.86590722,194.42,194.38,1.69470314]
[1761427748610,3.86590722,194.41,194.38,1.69470314]
[1761427748807,2.84,194.43,194.35,2.64481094]
[1761427749011,6.67592133,194.42,194.4,4.6289]
[1761427749214,3.86592133,194.41,194.4,4.6289]
[1761427754415,3.86634868,194.41,194.4,4.6289]
[1761427755215,2.81,194.42,194.4,4.6289]
[1761427755419,3.86633759,194.41,194.4,4.6289]
[1761427763925,2.81,194.42,194.4,4.6289]
[1761427764228,3.86440625,194.41,194.4,4.6289]
[1761427764724,2.81,194.42,194.4,4.6289]
[1761427766522,6.67431533,194.41,194.4,4.6289]
[1761427767127,2.81,194.4,194.29,2.64481094]
[1761427768028,2.81,194.4,194.37,4.6296]
[1761427768532,6.74916399,194.39,194.37,4.6296]
[1761427768731,2.81,194.39,194.37,4.6296]
[1761427776740,2.81,194.42,194.37,4.6296]
[1761427776940,2.81,194.4,194.37,4.6296]
[1761427777537,2.81,194.4,194.38,4.6294]
[1761427782035,3.93755997,194.39,194.38,4.6294]
[1761427782838,6.71755997,194.39,194.38,4.6294]
[1761427783442,2.78,194.39,194.38,4.6294]
[1761427792149,6.72021644,194.39,194.38,4.6294]
[1761427792344,2.78,194.39,194.38,4.6294]
[1761427792543,6.72023295,194.39,194.38,4.6294]
[1761427792742,2.78,194.39,194.38,4.6294]
[1761427793339,6.72022211,194.39,194.38,4.6294]
[1761427805361,2.8,194.38,194.28,9.2636]
[1761427805565,6.74022211,194.37,194.28,9.2636]
[1761427805753,3.94022211,194.36,194.28,9.2636]
[1761427805952,2.8,194.37,194.28,9.2636]
[1761427806159,3.94208678,194.36,194.28,9.2636]
[1761427806364,2.8,194.37,194.28,9.2636]
[1761427806565,3.94121682,194.36,194.28,9.2636]
[1761427806865,2.8,194.37,194.28,9.2636]
[1761427807067,3.94121624,194.36,194.28,9.2636]
[1761427807264,2.8,194.36,194.26,16.62481094]
[1761427807661,6.74071573,194.35,194.26,16.62481094]
[1761427807868,2.8,194.35,194.26,16.62481094]
[1761427808760,2.8,194.35,194.28,1.69423992]
[1761427809064,2.8,194.35,194.31,4.6311]
[1761427810372,2.8,194.35,194.32,4.6308]
[1761427812671,2.8,194.35,194.3,4.6314]
[1761427812870,2.77,194.33,194.3,4.6314]
[1761427816068,2.77,194.36,194.25,1.69423992]
[1761427816268,2.77,194.34,194.31,4.6311]
[1761427818071,4.00638715,194.37,194.32,4.6308]
[1761427818275,2.77,194.39,194.31,1.69423992]
[1761427818470,4.00605468,194.38,194.31,1.69423992]
[1761427818676,4.00605468,194.37,194.31,1.69423992]
[1761427818976,2.77,194.39,194.34,6.32453992]
[1761427819171,4.00604878,194.38,194.34,6.32453992]
[1761427819479,4.00604878,194.37,194.34,6.32453992]
[1761427819677,2.77,194.39,194.34,6.32453992]
[1761427819877,4.00595696,194.38,194.34,4.6303]
[1761427820176,4.00595696,194.37,194.34,4.6303]
[1761427820379,2.77,194.4,194.34,4.6303]
[1761427820587,2.77,194.38,194.34,4.6303]
[1761427820873,4.00587013,194.37,194.34,4.6303]
[1761427821173,2.77,194.38,194.34,4.6303]
[1761427821368,4.01257676,194.37,194.34,4.6303]
[1761427821574,2.77,194.37,194.34,4.6303]
[1761427821982,1.69423992,194.36,194.31,4.631]
[1761427822282,2.77,194.35,194.31,4.631]
[1761427823376,1.69423992,194.39,194.32,4.6308]
[1761427823573,6.78233589,194.38,194.32,4.6308]
[1761427823779,4.01233589,194.37,194.32,4.6308]
[1761427824072,2.77,194.37,194.32,4.6308]
[1761427828876,1.69423992,194.36,194.32,4.6308]
[1761427829181,2.77,194.34,194.32,4.6308]
[1761427831484,2.77,194.34,194.3,4.6314]
[1761427831981,2.77,194.32,194.3,4.6314]
[1761427832679,2.77,194.32,194.23,62.9356261]
[1761427834087,2.77,194.32,194.28,4.6318]
[1761427841180,2.77,194.32,194.25,4.6325]
[1761427841485,2.66,194.29,194.25,4.6325]
[1761427846484,2.66,194.29,194.26,4.6323]
[1761427849290,4.80478961,194.35,194.23,62.04]
[1761427849586,4.80478961,194.44,194.3,1.69423992]
[1761427849792,4.80478961,194.44,194.23,62.93563763]
[1761427849793,2.66,194.45,194.33,1.69423992]
[1761427850380,2.66,194.49,194.36,1.69423992]
[1761427851192,2.66,194.47,194.35,6.38976744]
[1761427851389,1.69423992,194.48,194.35,6.38976744]
[1761427851390,2.66,194.44,194.35,6.38976744]
[1761427851590,2.66,194.44,194.37,4.6296]
[1761427862099,2.66,194.44,194.33,6.38976744]
[1761427862301,2.71,194.41,194.32,22.64]
[1761427862695,2.71,194.38,194.28,4.6318]
[1761427863190,2.71,194.38,194.29,4.6315]
[1761427872905,2.71,194.38,194.26,62.48]
[1761427873099,2.69,194.36,194.26,62.48]
[1761427887634,2.69,194.35,194.26,62.48]
[1761427896147,2.69,194.35,194.2,4.6336]
[1761427899451,2.69,194.35,194.21,4.6334]
[1761427902351,2.85,194.34,194.21,4.6334]
[1761427902653,2.85,194.33,194.21,4.6334]
[1761427903353,2.85,194.32,194.21,4.6334]
[1761427904847,6.77177514,194.32,194.21,4.6334]
[1761427905044,2.85,194.35,194.21,4.6334]
[1761427905347,2.85,194.33,194.22,4.6332]
[1761427905547,2.85,194.31,194.22,4.6332]
[1761427909959,3.92575441,194.3,194.22,4.6332]
[1761427910151,2.85,194.31,194.22,4.6332]
[1761427910350,3.92618978,194.3,194.22,4.6332]
[1761427910546,2.85,194.31,194.22,4.6332]
[1761427910755,3.92618559,194.3,194.22,4.6332]
[1761427910956,2.85,194.31,194.22,4.6332]
[1761427911158,3.92618559,194.3,194.22,4.6332]
[1761427911353,2.85,194.31,194.22,4.6332]
[1761427911554,3.94376165,194.3,194.22,4.6332]
[1761427911755,3.94367451,194.29,194.22,4.6332]
[1761427911954,3.94367451,194.28,194.22,4.6332]
[1761427912158,2.85,194.31,194.22,4.6332]
[1761427912457,3.94363967,194.3,194.22,4.6332]
[1761427912648,3.94363967,194.29,194.22,4.6332]
[1761427912847,3.94363967,194.28,194.22,4.6332]
[1761427913062,2.85,194.31,194.22,4.6332]
[1761427913253,3.94394713,194.3,194.22,4.6332]
[1761427913457,3.94394713,194.29,194.22,4.6332]
[1761427913657,3.94394713,194.28,194.22,4.6332]
[1761427913857,2.85,194.31,194.22,4.6332]
[1761427914057,3.94442147,194.3,194.22,4.6332]
[1761427914258,3.94442147,194.29,194.22,4.6332]
[1761427914462,3.94442147,194.28,194.22,4.6332]
[1761427914653,2.85,194.31,194.22,4.6332]
[1761427914849,2.85,194.29,194.19,0.89579901]
[1761427915056,2.85,194.27,194.18,4.6343]
[1761427915553,3.94147729,194.26,194.18,4.6343]
[1761427915853,3.94125815,194.25,194.18,4.6343]
[1761427916050,2.85,194.27,194.18,4.6343]
[1761427916250,6.79062073,194.26,194.18,4.6343]
[1761427916453,2.85,194.24,194.18,4.6343]
[1761427916657,3.93967316,194.23,194.16,4.6347]
[1761427916962,2.85,194.24,194.16,4.6347]
[1761427917159,3.93968863,194.23,194.16,4.6347]
[1761427917360,2.85,194.23,194.16,4.6347]
[1761427920871,2.85,194.23,194.17,4.6344]
[1761427923054,2.85,194.23,194.12,0.89611042]
[1761427923451,6.75389403,194.28,194.12,0.89611042]
[1761427923653,6.75389403,194.27,194.12,0.89611042]
[1761427923857,2.82,194.27,194.12,0.89611042]
[1761427924164,2.82,194.27,194.18,4.6342]
[1761427924567,2.82,194.3,194.19,62.32]
[1761427925270,2.82,194.34,194.19,62.32]
[1761427925567,3.90735265,194.33,194.19,62.32]
[1761427925769,3.90735265,194.32,194.19,62.32]
[1761427925970,3.90735265,194.33,194.19,62.32]
[1761427926269,3.90735265,194.32,194.19,62.32]
[1761427926469,6.72735265,194.33,194.19,62.32]
[1761427926772,3.90735265,194.32,194.19,62.32]
[1761427927069,2.82,194.33,194.22,2.6478836]
[1761427927259,2.82,194.33,194.19,62.32]
[1761427929168,6.72908177,194.33,194.19,62.32]
[1761427929471,2.82,194.33,194.19,62.32]
[1761427930583,6.72934639,194.33,194.19,62.32]
[1761427930772,2.82,194.33,194.19,62.32]
[1761427930971,2.82,194.33,194.26,4.6322]
[1761427931875,6.7295019,194.33,194.26,4.6322]